{"text_format":"1","workbook":"xlsx","n_sheets":2,"sheets":["Лист для печати","Лист для ввода"],"not_rendered":{"charts":0,"images":1,"macros":1,"external_links":1,"defined_names":2,"comments":0,"pivot_tables":0},"unopened":[],"bounds":{"document_bytes":16777216,"sheet_cells":100000,"rows_first":2000,"rows_last":500,"rows_between":2000,"halvings":0,"cell_chars":16384,"cell_head_chars":4096},"cells_cut":0,"cells_raw":0,"read":"whole","date_system":"1900"}

{"sheet":"Лист для печати","index":0,"n_rows":31,"n_cols":10,"rows_kept":31,"cut":false,"hidden":false,"merged":[[15,0,17,0],[15,1,15,8],[15,9,17,9],[0,2,0,9],[16,1,16,2],[16,3,16,4],[16,5,16,6],[16,7,16,8],[1,6,1,8],[2,6,2,9],[4,0,4,9],[5,0,5,9],[6,0,6,9],[7,0,7,9],[8,0,8,9],[9,0,9,9],[10,0,10,9],[11,0,11,9],[12,0,12,9],[13,0,13,9]]}
[null,null,"Включить содержимое.\nКнопку нажимать только после того, как \"Лист для ввода\" полностью заполнен.\nВ конце данного листа вставить данные для подписи."]
[null,null,null,null,null,null,"Ежеквартально, до 20 числа месяца, следующего за отчетным кварталом"]
[null,null,null,null,null,null,"на эл. адрес: monitor@krasnodar.ru"]
[]
["ОТЧЕТ "]
["о результативности предоставления межбюджетных трансфертов местным бюджетам\nмуниципальных образований Краснодарского края в рамках реализации \nгосударственной программы Краснодарского края"]
["\"Развитие сельского хоозяйства и регулирование рынков сельскохозяйственной продукции, сырья и продовольствия\""]
["(наименование государственной программы)"]
["\"Обеспечение эпизоотического, ветеринарно- санитарного благополучия в Краснодарском крае и развитие государственной ветеринарной службы Краснодарского края\""]
["(наименование подпрограммы государственной программы)"]
["Субвенции на осуществление государственных полномочий Краснодарского края по организации проведения в Краснодарском крае  мероприятий по предупреждению и ликвидации болезней животных, их лечению,  защите населения от болезней, общих для человека и животных, в части обустройства в поселениях мест захоронения биологических отходов  (скотомогильников, биотермических ям) либо уничтожения биологических отходов в специальных печах (крематорах). "]
["(наименование межбюджетного трансферта)"]
["9 месяцев 2018 г"]
["(за I квартал, первое полугодие, 9 месяцев, год)"]
[]
["Наименование муниципального образования (получателя межбюджетного трансферта)","Наименование показателя результативности предоставления межбюджетного трансферта (с указанием единицы измерения)",null,null,null,null,null,null,null,"Причины недостижения показателя результативности"]
[null,"Обустройство в поселениях 1 места уничтожения биологических отходов в специальных печах (крематорах).",null,"2.",null,"3.",null,"4."]
[null,"Плановое значение","Фактическое значение","Плановое значение","Фактическое значение","Плановое значение","Фактическое значение","Плановое значение","Фактическое значение"]
[1,2,3,4,5,6,7,8,9,10]
["город-курорт Анапа ",1,null,null,null,null,null,null,null,"Соглашение не заключено"]
["город-курорт Сочи ",1,null,null,null,null,null,null,null,"Подготавливается необходимый пакет документов для размещения их на оф.сайте для осуществления закупок. Проведение  эл.аукциона ожидается в 4 кв. 2018 г."]
["Гулькевичский район,\nвсего район и поселения",1,0,0,0,0,0,0,0,"В настоящее время завершаются  работы по  переводу земельного участка из земель- земли с/х назначения - земли  промышленности и земли иного специального назначения"]
["Гулькевичский район",1]
["Крымский район,\nвсего район и поселения",1,0,0,0,0,0,0,0,"Соглашение не заключено"]
["Крымский район",1]
["Мостовский район,\nвсего район и поселения",1,0,0,0,0,0,0,0,"Ведется разработка технического задания"]
["Мостовский район",1]
["Отрадненский район,\nвсего район и поселения",1,0,0,0,0,0,0,0,"Вносятся изменения в бюджетную роспись, план закупок,план график.Подготовлен пакет документов для проведения эл.аукциона."]
["Отрадненский район",1]
["Северский район,\nвсего район и поселения",1,0,0,0,0,0,0,0,"В настоящее время ведется работа по перепроектированию пректно- сметной документации земельного участка"]
["Северский район",1]

{"sheet":"Лист для ввода","index":1,"n_rows":493,"n_cols":10,"rows_kept":493,"cut":false,"hidden":false,"merged":[[490,0,490,2],[483,0,483,9],[4,0,4,9],[15,0,17,0],[15,1,15,8],[15,9,17,9],[16,1,16,2],[16,3,16,4],[16,5,16,6],[16,7,16,8],[7,0,7,9],[8,0,8,9],[9,0,9,9],[10,0,10,9],[11,0,11,9],[488,0,488,9],[0,7,0,9],[5,0,5,9],[6,0,6,9],[484,0,484,9],[487,0,487,9],[12,0,12,9],[13,0,13,9],[485,0,485,9],[486,0,486,9]]}
[null,null,null,null,null,null,null,"Ежеквартально, до 20 числа месяца, следующего за отчетным кварталом"]
[null,null,null,null,null,null,null,"на эл. адрес: monitor@krasnodar.ru"]
[]
[]
["ОТЧЕТ"]
["о результативности предоставления межбюджетных трансфертов местным бюджетам\nмуниципальных образований Краснодарского края в рамках реализации \nгосударственной программы Краснодарского края  \"Развитие сельского хозяйства и регулирование рынков сельскохозяйственной продукции, сырья и продовольствия\""]
[{"$f":"'[1]Лист для ввода'!A7:N7","v":"(наименование государственной программы)"}]
[{"$f":"'[1]Лист для ввода'!A8:N8","v":"\"Обеспечение эпизоотического, ветеринарно-санитарного благополучия в Краснодарском крае и развитие государственной ветеринарной службы Краснодарского края\""}]
[{"$f":"'[1]Лист для ввода'!A9:N9","v":"(наименование подпрограммы государственной программы)"}]
["Субвенции на осуществление государственных полномочий Краснодарского края по организации проведения в Краснодарском крае мероприятий по предупреждению и ликвидации болезней животных, их лечению, защите населения от болезней, общих для человека и животных, в части обустройства в поселениях мест захоронения биологических отходов (скотомогильников, биотермических ям) либо уничтожения биологических отходов в специальных печах (крематорах)."]
[{"$f":"'[1]Лист для ввода'!A11:N11","v":"(наименование межбюджетного трансферта)"}]
["9 месяцев"]
[{"$f":"'[1]Лист для ввода'!A13:N13","v":"(за I квартал, первое полугодие, 9 месяцев, год)"}]
[]
[]
["Наименование муниципального образования (получателя межбюджетного трансферта)","Наименование показателя результативности предоставления межбюджетного трансферта2) (с указанием единицы измерения)",null,null,null,null,null,null,null,"Причины недостижения показателя результативности3)"]
[null,"1.Обустройство в поселениях 1 места уничтожения биологических отходов в специальных печах (крематорах)",null,"2.",null,"3.",null,"4."]
[null,"Плановое значение2)","Фактическое значение","Плановое значение2)","Фактическое значение","Плановое значение2)","Фактическое значение","Плановое значение2)","Фактическое значение"]
[1,2,3,4,5,6,7,8,9,10]
["город-курорт Анапа ",1,null,null,null,null,null,null,null,"Соглашение не заключено"]
["город Армавир "]
["город-курорт Геленджик "]
["город Горячий Ключ "]
["город Краснодар "]
["город Новороссийск "]
["город-курорт Сочи ",1,null,null,null,null,null,null,null,"Подготавливается необходимый пакет документов для размещения их на оф.сайте для осуществления закупок. Проведение  эл.аукциона ожидается в 4 кв. 2018 г."]
["Абинский район,\nвсего район и поселения"]
["Абинский район "]
[" Абинское г/п"]
[" Ахтырское г/п"]
[" Варнавинское с/п"]
[" Мингрельское с/п"]
[" Ольгинское с/п"]
[" Светлогорское с/п"]
[" Федоровское с/п"]
[" Холмское с/п"]
["Апшеронский район,\nвсего район и поселения",null,{"$f":"SUM(C38:C50)","v":0},0,0,0,0,0,0]
["Апшеронский район"]
[" Апшеронское г/п"]
[" Кабардинское с/п"]
[" Кубанское с/п"]
[" Куринское с/п"]
[" Мезмайское с/п"]
[" Нефтегорское г/п"]
[" Нижегородское г/п"]
[" Новополянское с/п"]
[" Отдаленное с/п"]
[" Тверское с/п"]
[" Хадыженское г/п"]
[" Черниговское с/п"]
["Белоглинский район,\nвсего район и поселения ",null,{"$f":"SUM(C52:C56)","v":0},0,0,0,0,0,0]
["Белоглинский район"]
[" Белоглинское с/п"]
[" Новопавловское с/п"]
[" Успенское с/п"]
[" Центральное с/п"]
["Белореченский район,\nвсего район и поселения",null,{"$f":"SUM(C58:C69)","v":0},0,0,0,0,0,0]
["Белореченский район"]
[" Белореченское г/п"]
[" Бжедуховское с/п"]
[" Великовечненское с/п"]
[" Дружненское с/п"]
[" Первомайское с/п"]
[" Пшехское с/п"]
[" Родниковское с/п"]
[" Рязанское с/п"]
[" Школьненское с/п"]
[" Черниговское с/п"]
[" Южненское с/п"]
["Брюховецкий район,\nвсего район и поселения",null,{"$f":"SUM(C71:C79)","v":0},0,0,0,0,0,0]
["Брюховецкий район"]
[" Батуринское с/п"]
[" Большебейсугское с/п"]
[" Брюховецкое с/п"]
[" Новоджерелиевское с/п"]
[" Новосельское с/п"]
[" Переясловское с/п"]
[" Свободненское с/п"]
[" Чепигинское с/п"]
["Выселковский район,\nвсего район и поселения",null,{"$f":"SUM(C81:C91)","v":0},0,0,0,0,0,0]
["Выселковский район"]
[" Бейсугское с/п"]
[" Бейсужекское с/п"]
[" Березанское с/п"]
[" Бузиновское с/п"]
[" Выселковское с/п"]
[" Газырское с/п"]
[" Ирклиевское с/п"]
[" Крупское с/п"]
[" Новобейсугское с/п"]
[" Новомалороссийское с/п"]
["Гулькевичский район,\nвсего район и поселения",1,{"$f":"SUM(C93:C108)","v":0},0,0,0,0,0,0,"В настоящее время завершаются  работы по  переводу земельного участка из земель- земли с/х назначения - земли  промышленности и земли иного специального назначения"]
["Гулькевичский район",1]
[" Гулькевичское г/п"]
[" Гирейское г/п"]
[" Венцы-Заря с/п"]
[" Комсомольское с/п"]
[" Красносельское г/п"]
[" Кубань с/п"]
[" Николенское с/п"]
[" Новоукраинское с/п"]
[" Отрадно-Кубанское с/п"]
[" Отрадно-Ольгинское с/п"]
[" Пушкинское с/п"]
[" Скобелевское с/п"]
[" Соколовское с/п"]
[" Союз 4-х хуторов с/п"]
[" Тысячное с/п"]
["Динской район,\nвсего район и поселения",null,{"$f":"SUM(C110:C120)","v":0},0,0,0,0,0,0]
["Динской район"]
[" Васюринское с/п"]
[" Динское с/п"]
[" Красносельское с/п"]
[" Мичуринское с/п"]
[" Нововеличковское с/п"]
[" Новотитаровское с/п"]
[" Первореченское с/п"]
[" Пластуновское с/п"]
[" Старомышастовское с/п"]
[" Южно-Кубанское с/п"]
["Ейский район,\nвсего район и поселения",null,{"$f":"SUM(C122:C133)","v":0},0,0,0,0,0,0]
["Ейский район"]
[" Александровское с/п"]
[" Должанское с/п"]
[" Ейское г/п"]
[" Ейское с/п"]
[" Камышеватское с/п"]
[" Копанское с/п"]
[" Красноармейское с/п"]
[" Кухаривское с/п"]
[" Моревское с/п"]
[" Трудовое с/п"]
[" Ясенское с/п"]
["Кавказский район,\nвсего район и поселения",null,{"$f":"SUM(C135:C144)","v":0},0,0,0,0,0,0]
["Кавказский район"]
[" Дмитриевское с/п"]
[" им. М. Горького с/п"]
[" Кавказское с/п"]
[" Казанское с/п"]
[" Кропоткинское г/п"]
[" Лосевское с/п"]
[" Мирское с/п"]
[" Привольное с/п"]
[" Темижбекское с/п"]
["Калининский район,\nвсего район и поселения",null,{"$f":"SUM(C146:C154)","v":0},0,0,0,0,0,0]
["Калининский район"]
[" Бойкопонурское с/п"]
[" Гривенское с/п"]
[" Гришковское с/п"]
[" Джумайловское с/п"]
[" Калининское с/п"]
[" Куйбышевское с/п"]
[" Новониколаевское с/п"]
[" Старовеличковское с/п"]
["Каневской район,\nвсего район и поселения",null,{"$f":"SUM(C156:C165)","v":0},0,0,0,0,0,0]
["Каневской район"]
[" Каневское с/п"]
[" Красногвардейское с/п"]
[" Кубанскостепное с/п"]
[" Новодерявянковское с/п"]
[" Новоминское с/п"]
[" Привольненское с/п"]
[" Придорожное с/п"]
[" Стародеревянковское с/п"]
[" Челбасское с/п"]
["Кореновский район,\nвсего район и поселения",null,{"$f":"SUM(C167:C177)","v":0},0,0,0,0,0,0]
["Кореновский район"]
[" Братковское с/п"]
[" Бураковское с/п"]
[" Дядьковское с/п"]
[" Журавское с/п"]
[" Кореновское г/п"]
[" Новоберезанское с/п"]
[" Платнировское с/п"]
[" Пролетарское с/п"]
[" Раздольненское с/п"]
[" Сергиевское с/п"]
["Красноармейский район,\nвсего район и поселения",null,{"$f":"SUM(C179:C189)","v":0},0,0,0,0,0,0]
["Красноармейский район"]
[" Ивановское с/п"]
[" Марьянское с/п"]
[" Новомышастовское с/п"]
[" Октябрьское с/п"]
[" Полтавское с/п"]
[" Протичкинское с/п"]
[" Староджерелиевское с/п"]
[" Старонижнестеблиевское с/п"]
[" Трудобеликовское с/п"]
[" Чебургольское с/п"]
["Крыловский район,\nвсего район и поселения",null,{"$f":"SUM(C191:C197)","v":0},0,0,0,0,0,0]
["Крыловский район"]
[" Крыловское с/п"]
[" Кугоейское с/п"]
[" Новопашковское с/п"]
[" Новосергиевское с/п"]
[" Октябрьское с/п"]
[" Шевченковское с/п"]
["Крымский район,\nвсего район и поселения",1,{"$f":"SUM(C199:C210)","v":0},0,0,0,0,0,0,"Соглашение не заключено"]
["Крымский район",1]
[" Адагумское с/п"]
[" Варениковское с/п"]
[" Кеслеровское с/п"]
[" Киевское с/п"]
[" Крымское г/п"]
[" Мерчанское с/п"]
[" Молдаванское с/п"]
[" Нижнебаканское с/п"]
[" Пригородное с/п"]
[" Троицкое с/п"]
[" Южное с/п"]
["Курганинский район,\nвсего район и поселения",null,{"$f":"SUM(C212:C222)","v":0},0,0,0,0,0,0]
["Курганинский район"]
[" Безводное с/п"]
[" Воздвиженское с/п"]
[" Константиновское с/п"]
[" Курганинское г/п"]
[" Михайловское с/п"]
[" Новоалексеевское с/п"]
[" Октябрьское с/п"]
[" Петропавловское с/п"]
[" Родниковское с/п"]
[" Темиргоевское с/п"]
["Кущевский район,\nвсего район и поселения",null,{"$f":"SUM(C224:C236)","v":0},0,0,0,0,0,0]
["Кущевский район"]
[" Глебовское с/п"]
[" Ильинское с/п"]
[" Кисляковское с/п"]
[" Краснополянское с/п"]
[" Красносельское с/п"]
[" Кущевское с/п"]
[" Новомихайловское с/п"]
[" Первомайское с/п"]
[" Полтавченское с/п"]
[" Раздольненское с/п"]
[" Среднечубуркское с/п"]
[" Шкуринское с/п"]
["Лабинский район,\nвсего район и поселения",null,{"$f":"SUM(C238:C251)","v":0},0,0,0,0,0,0]
["Лабинский район"]
[" Ахметовское с/п"]
[" Владимирское с/п"]
[" Вознесенское с/п"]
[" Зассовское с/п"]
[" Каладжинское с/п"]
[" Лабинское г/п"]
[" Лучевое с/п"]
[" Отважненское с/п"]
[" Первосинюхинское с/п"]
[" Сладковское с/п"]
[" Упорненское с/п"]
[" Харьковское с/п"]
[" Чамлыкское с/п"]
["Ленинградский район,\nвсего район и поселения",null,{"$f":"SUM(C253:C265)","v":0},0,0,0,0,0,0]
["Ленинградский район"]
[" Белохуторское с/п"]
[" Западное с/п"]
[" Коржовское с/п"]
[" Крыловское с/п"]
[" Куликовское с/п"]
[" Восточное с/п"]
[" Ленинградское с/п"]
[" Новоплатнировское с/п"]
[" Новоуманское с/п"]
[" Образцовое с/п"]
[" Первомайское с/п"]
[" Уманское с/п"]
["Мостовский район,\nвсего район и поселения",1,{"$f":"SUM(C267:C281)","v":0},0,0,0,0,0,0,"Ведется разработка технического задания"]
["Мостовский район",1]
[" Андрюковское с/п"]
[" Баговское с/п"]
[" Беноковское с/п"]
[" Бесленеевское с/п"]
[" Губское с/п"]
[" Костромское с/п"]
[" Краснокутское с/п"]
[" Махошевское с/п"]
[" Мостовское г/п"]
[" Переправненское с/п"]
[" Псебайское г/п"]
[" Унароковское с/п"]
[" Шедокское с/п"]
[" Ярославское с/п"]
["Новокубанский район,\nвсего район и поселения",null,{"$f":"SUM(C283:C292)","v":0},0,0,0,0,0,0]
["Новокубанский район"]
[" Бесскорбненское с/п"]
[" Верхнекубанское с/п"]
[" Ковалевское с/п"]
[" Ляпинское с/п"]
[" Новокубанское г/п"]
[" Новосельское с/п"]
[" Прикубанское с/п"]
[" Прочноокопское с/п"]
[" Советское с/п"]
["Новопокровский район,\nвсего район и поселения",null,{"$f":"SUM(C294:C302)","v":0},0,0,0,0,0,0]
["Новопокровский район"]
[" Горькобалковское с/п"]
[" Ильинское с/п"]
[" Калниболотское с/п"]
[" Кубанское с/п"]
[" Незамаевское с/п"]
[" Новоивановское с/п"]
[" Новопокровское с/п"]
[" Покровское с/п"]
["Отрадненский район,\nвсего район и поселения",1,{"$f":"SUM(C304:C318)","v":0},0,0,0,0,0,0,"Вносятся изменения в бюджетную роспись, план закупок,план график.Подготовлен пакет документов для проведения эл.аукциона."]
["Отрадненский район",1]
[" Бесстрашненское с/п"]
[" Благодарненское с/п"]
[" Красногвардейское с/п"]
[" Малотенгинское с/п"]
[" Маякское с/п"]
[" Надежненское с/п"]
[" Отрадненское с/п"]
[" Передовское с/п"]
[" Подгорненское с/п"]
[" Подгорносинюхинское с/п"]
[" Попутненское с/п"]
[" Рудьевское с/п"]
[" Спокойненское с/п"]
[" Удобненское с/п"]
["Павловский район,\nвсего район и поселения",null,{"$f":"SUM(C320:C331)","v":0},0,0,0,0,0,0]
["Павловский район"]
[" Атаманское с/п"]
[" Веселовское с/п"]
[" Незамаевское с/п"]
[" Новоулешковское с/п"]
[" Новопетровское с/п"]
[" Новопластуновское с/п"]
[" Павловское с/п"]
[" Северное с/п"]
[" Среднечелбасское"]
[" Староулешковское с/п"]
["Упорненское с/п"]
["Приморско-Ахтарский район,\nвсего район и поселения",null,{"$f":"SUM(C333:C342)","v":0},0,0,0,0,0,0]
["Приморско-Ахтарский район"]
[" Ахтарское с/п"]
[" Бородинское с/п"]
[" Бриньковское с/п"]
[" Новопокровское с/п"]
[" Ольгинское с/п"]
[" Приазовское с/п"]
["Приморско-Ахтарское г/п"]
[" Свободное с/п"]
[" Степное с/п"]
["Северский район,\nвсего район и поселения",1,{"$f":"SUM(C344:C356)","v":0},0,0,0,0,0,0,"В настоящее время ведется работа по перепроектированию пректно- сметной документации земельного участка"]
["Северский район",1]
[" Азовское с/п"]
[" Афипское г/п"]
[" Григорьевское с/п"]
[" Ильское г/п"]
[" Калужское с/п"]
[" Львовское с/п"]
[" Михайловское с/п"]
[" Новодмитриевское с/п"]
[" Северское с/п"]
[" Смоленское с/п"]
[" Черноморское г/п"]
[" Шабановское с/п"]
["Славянский район,\nвсего район и поселения",null,{"$f":"SUM(C358:C373)","v":0},0,0,0,0,0,0]
["Славянский район"]
[" Анастасиевское с/п   "]
[" Ачуевское с/п"]
[" Голубая Нива с/п"]
[" Забойское с/п "]
[" Кировское с/п"]
[" Коржевское с/п "]
[" Маевское с/п  "]
[" Петровское с/п"]
[" Прибрежное с/п "]
[" Прикубанское с/п"]
[" Протокское с/п "]
[" Рисовое с/п "]
[" Славянское г/п"]
[" Целинное с/п"]
[" Черноерковское с/п"]
["Староминский район,\nвсего район и поселения",null,{"$f":"SUM(C375:C380)","v":0},0,0,0,0,0,0]
["Староминский район"]
[" Канеловское с/п"]
[" Рассветовское с/п"]
[" Куйбышевское с/п"]
[" Новоясенское с/п"]
[" Староминское с/п"]
["Тбилисский район,\nвсего район и поселения",null,{"$f":"SUM(C382:C390)","v":0},0,0,0,0,0,0]
["Тбилисский район"]
[" Алексее-Тенгинское с/п"]
[" Ванновское с/п"]
[" Геймановское с/п"]
[" Ловлинское с/п"]
[" Марьинское с/п"]
[" Нововладимировское с/п"]
[" Песчаное с/п"]
[" Тбилисское с/п"]
["Темрюкский район,\nвсего район и поселения",null,{"$f":"SUM(C392:C404)","v":0},0,0,0,0,0,0]
["Темрюкский район"]
[" Ахтанизовское с/п"]
[" Вышестиблиевское с/п"]
[" Голубицкое с/п"]
[" Запорожское с/п"]
[" Краснострельское с/п"]
[" Курчанское с/п"]
[" Новотаманское с/п"]
[" Сенное с/п"]
[" Старотитаровское с/п"]
[" Таманское с/п"]
[" Темрюкское г/п"]
[" Фонталовское с/п"]
["Тимашевский район,\nвсего район и поселения",null,{"$f":"SUM(C406:C416)","v":0},0,0,0,0,0,0]
["Тимашевский район"]
["Дербентское с/п"]
["Днепровское с/п"]
[" с/п Кубанец"]
[" Медведовское с/п"]
[" Незаймановское с/п"]
[" Новокорсунское с/п"]
[" Новоленинское с/п"]
[" Поселковое с/п"]
[" Роговское с/п"]
["Тимашевское г/п"]
["Тихорецкий район,\nвсего район и поселения",null,{"$f":"SUM(C418:C431)","v":0},0,0,0,0,0,0]
["Тихорецкий район"]
["Алексеевское с/п"]
[" Архангельское с/п"]
[" Братское с/п"]
[" Еремизино-Борисовское с/п"]
[" Крутое с/п"]
[" Новорождественское с/п"]
[" Отрадненское с/п"]
[" Парковское с/п"]
[" Терновское с/п"]
[" Тихорецкое г/п"]
[" Фастовецкое с/п"]
[" Хоперское с/п"]
[" Юго-Северное с/п"]
["Туапсинский район,\nвсего район и поселения",null,{"$f":"SUM(C433:C443)","v":0},0,0,0,0,0,0]
["Туапсинский район"]
[" Вельяминовское с/п"]
[" Георгиевское с/п"]
[" Джубгское г/п"]
[" Небугское с/п"]
[" Новомихайловское г/п"]
[" Октябрьское с/п"]
[" Тенгинское с/п"]
[" Туапсинское г/п"]
[" Шаумянское с/п"]
[" Шепсинское с/п"]
["Успенский район,\nвсего район и поселения",null,{"$f":"SUM(C445:C455)","v":0},0,0,0,0,0,0]
["Успенский район"]
[" Веселовское с/п"]
[" Вольненское с/п"]
[" Коноковское с/п"]
[" Кургоковское с/п"]
[" Маламинское с/п"]
[" Николаевское с/п"]
[" Трехсельское с/п"]
[" Убеженское с/п"]
[" Урупское с/п"]
[" Успенское с/п"]
["Усть-Лабинский район,\nвсего район и поселения",null,{"$f":"SUM(C457:C472)","v":0},0,0,0,0,0,0]
["Усть-Лабинский район"]
[" Александровское с/п"]
[" Братское с/п"]
[" Вимовское с/п"]
[" Воронежское с/п"]
[" Восточное с/п"]
[" Двубратское с/п"]
[" Железное с/п"]
[" Кирпильское с/п"]
[" Ладожское с/п"]
[" Ленинское с/п"]
[" Некрасовское с/п"]
[" Новолабинское с/п"]
[" Суворовское с/п"]
[" Тенгинское с/п"]
[" Усть-Лабинское г/п "]
["Щербиновский район,\nвсего район и поселения",null,{"$f":"SUM(C474:C482)","v":0},0,0,0,0,0,0]
["Щербиновский район"]
[" Глафировское с/п"]
[" Ейскоукрепленское с/п"]
[" Екатериновское с/п"]
[" Николаевское с/п"]
[" Новощербиновское с/п"]
[" Старощербиновское с/п"]
[" Шабельское с/п"]
[" Щербиновское с/п"]
[]
["1) Отчет предоставляется в случае если соглашение, заключенное с муниципальным образованием, предусматривает показатели результативности предоставления межбюджетного трансферта."]
["2) При наличии в соглашении с муниципальным образованием более 1-го показателя результативности предоставления межбюджетного трансферта отчет дополняется необходимым количеством граф."]
["3) В случае если достижение показателя результативности предоставления межбюджетного трансферта предусмотрено в году следующем за отчетным, в графе делается соответствующая отметка о сроке достижения показателя."]
["4) В соответствии с заключенным соглашением между главным распорядителем (распорядителем) средств краевого бюджета и муниципальным образованием о предоставлении межбюджетного трансферта из краевого бюджета."]
["Примечание. В форме не допускается исключать и добавлять графы и скрывать строки."]
[]
[]
["Руководитель органа исполнительной власти, структурного подразделения администрации Краснодарского края ",null,null,null,"___________________",null,null,"___________________________"]
[null,null,null,null,"(подпись)",null,null,null,"(ФИО)"]
["Исполнитель, тел."]